[Event "Titled Tuesday Blitz August 17 2021"]
[White "Lamard, Guillaume"]
[Black "Batsuren, Dambasuren"]
[WhiteFideId "600261"]
[BlackFideId "4902920"]
[WhiteElo "2387"]
[BlackElo "2371"]
[Result "0-1"]
[Round "04"]
[TimeControl "180+1"]
[Date "2021.08.17"]
[WhiteClock "0:00:11"]
[BlackClock "0:00:08"]

1. Nf3 {[%clk 0:03:00]}  Nf6 {[%clk 0:02:59]} 2. c4 {[%clk 0:03:01]}  b6 {[%clk 0:02:56]} 3. g3 {[%clk 0:02:57]}  Bb7 {[%clk 0:02:57]} 4. Bg2 {[%clk 0:02:58]}  e6 {[%clk 0:02:58]} 5. O-O {[%clk 0:02:58]}  Be7 {[%clk 0:02:59]} 6. d4 {[%clk 0:02:56]}  O-O {[%clk 0:02:58]} 7. Nc3 {[%clk 0:02:55]}  Ne4 {[%clk 0:02:59]} 8. Bd2 {[%clk 0:02:54]}  f5 {[%clk 0:02:57]} 9. Ne5 {[%clk 0:02:42]}  Nxc3 {[%clk 0:02:55]} 10. Bxc3 {[%clk 0:02:41]}  Bxg2 {[%clk 0:02:56]} 11. Kxg2 {[%clk 0:02:41]}  Bf6 {[%clk 0:02:56]} 12. Nf3 {[%clk 0:02:37]}  Qe8 {[%clk 0:02:27]} 13. Qd3 {[%clk 0:02:32]}  Nc6 {[%clk 0:02:26]} 14. e4 {[%clk 0:02:29]}  fxe4 {[%clk 0:02:22]} 15. Qxe4 {[%clk 0:02:24]}  Qh5 {[%clk 0:02:14]} 16. Rae1 {[%clk 0:02:07]}  Rae8 {[%clk 0:02:10]} 17. b3 {[%clk 0:02:00]}  d5 {[%clk 0:02:05]} 18. Qd3 {[%clk 0:02:00]}  dxc4 {[%clk 0:01:41]} 19. bxc4 {[%clk 0:01:59]}  Qf5 {[%clk 0:01:39]} 20. Re3 {[%clk 0:01:30]}  Qxd3 {[%clk 0:01:31]} 21. Rxd3 {[%clk 0:01:30]}  e5 {[%clk 0:01:24]} 22. dxe5 {[%clk 0:01:18]}  Nxe5 {[%clk 0:01:24]} 23. Bxe5 {[%clk 0:01:18]}  Bxe5 {[%clk 0:01:25]} 24. Ra3 {[%clk 0:01:06]}  Bd6 {[%clk 0:00:59]} 25. Rxa7 {[%clk 0:01:02]}  Ra8 {[%clk 0:00:59]} 26. Rxa8 {[%clk 0:00:58]}  Rxa8 {[%clk 0:01:00]} 27. Re1 {[%clk 0:00:45]}  Rxa2 {[%clk 0:00:59]} 28. Ng5 {[%clk 0:00:45]}  g6 {[%clk 0:00:50]} 29. Re8+ {[%clk 0:00:41]}  Kg7 {[%clk 0:00:50]} 30. Ne4 {[%clk 0:00:41]}  Kf7 {[%clk 0:00:36]} 31. Rh8 {[%clk 0:00:38]}  h5 {[%clk 0:00:31]} 32. Rd8 {[%clk 0:00:20]}  Be5 {[%clk 0:00:26]} 33. Rd5 {[%clk 0:00:16]}  Ra5 {[%clk 0:00:14]} 34. c5 {[%clk 0:00:15]}  Ke6 {[%clk 0:00:14]} 35. Rd8 {[%clk 0:00:11]}  bxc5 {[%clk 0:00:14]} 36. h4 {[%clk 0:00:11]}  c4 {[%clk 0:00:13]} 37. Rd1 {[%clk 0:00:10]}  c3 {[%clk 0:00:13]} 38. Kf3 {[%clk 0:00:11]}  Ra3 {[%clk 0:00:10]} 39. Rc1 {[%clk 0:00:11]}  Kd5 {[%clk 0:00:08]} 40. Ke3 {[%clk 0:00:11]}  c2+ {[%clk 0:00:08]} 0-1


[Site "https://www.chess.com"]

[Event "Titled Tuesday Blitz August 17 2021"]
[White "Laurusas, Tomas"]
[Black "Martinez Reyes, Pedro Ramon"]
[WhiteFideId "12803731"]
[BlackFideId "3901807"]
[WhiteElo "2542"]
[BlackElo "2398"]
[Result "1-0"]
[Round "04"]
[TimeControl "180+1"]
[Date "2021.08.17"]
[WhiteClock "0:00:49"]
[BlackClock "0:00:01"]

1. Nf3 {[%clk 0:02:58]}  e6 {[%clk 0:02:59]} 2. d3 {[%clk 0:02:59]}  d5 {[%clk 0:02:59]} 3. Nbd2 {[%clk 0:02:59]}  Nf6 {[%clk 0:02:59]} 4. e4 {[%clk 0:02:59]}  Be7 {[%clk 0:03:00]} 5. Be2 {[%clk 0:03:00]}  b6 {[%clk 0:02:57]} 6. O-O {[%clk 0:03:00]}  Bb7 {[%clk 0:02:57]} 7. e5 {[%clk 0:02:59]}  Nfd7 {[%clk 0:02:56]} 8. d4 {[%clk 0:02:59]}  c5 {[%clk 0:02:56]} 9. c3 {[%clk 0:02:59]}  Ba6 {[%clk 0:02:54]} 10. Bxa6 {[%clk 0:02:54]}  Nxa6 {[%clk 0:02:55]} 11. Re1 {[%clk 0:02:54]}  b5 {[%clk 0:02:51]} 12. Nf1 {[%clk 0:02:51]}  O-O {[%clk 0:02:46]} 13. Ng3 {[%clk 0:02:51]}  Rc8 {[%clk 0:02:42]} 14. a3 {[%clk 0:02:38]}  cxd4 {[%clk 0:02:34]} 15. Nxd4 {[%clk 0:02:37]}  Qb6 {[%clk 0:02:19]} 16. Qg4 {[%clk 0:02:34]}  Rfe8 {[%clk 0:02:03]} 17. Bh6 {[%clk 0:02:10]}  g6 {[%clk 0:01:58]} 18. h4 {[%clk 0:02:09]}  Nac5 {[%clk 0:01:50]} 19. Re3 {[%clk 0:02:06]}  Na4 {[%clk 0:01:46]} 20. Re2 {[%clk 0:01:59]}  Nac5 {[%clk 0:01:43]} 21. Rd1 {[%clk 0:01:58]}  a5 {[%clk 0:01:42]} 22. Re3 {[%clk 0:01:56]}  b4 {[%clk 0:01:41]} 23. axb4 {[%clk 0:01:48]}  axb4 {[%clk 0:01:41]} 24. h5 {[%clk 0:01:46]}  bxc3 {[%clk 0:01:40]} 25. bxc3 {[%clk 0:01:45]}  Bf8 {[%clk 0:00:53]} 26. Bxf8 {[%clk 0:01:44]}  Nxf8 {[%clk 0:00:54]} 27. Rf3 {[%clk 0:01:38]}  Qc7 {[%clk 0:00:49]} 28. Re1 {[%clk 0:01:37]}  Ne4 {[%clk 0:00:44]} 29. Nxe4 {[%clk 0:01:36]}  dxe4 {[%clk 0:00:45]} 30. Rxe4 {[%clk 0:01:35]}  Rb8 {[%clk 0:00:25]} 31. Ref4 {[%clk 0:01:35]}  Qxe5 {[%clk 0:00:20]} 32. hxg6 {[%clk 0:01:29]}  Nxg6 {[%clk 0:00:19]} 33. g3 {[%clk 0:01:28]}  f5 {[%clk 0:00:18]} 34. Nxf5 {[%clk 0:01:23]}  exf5 {[%clk 0:00:18]} 35. Rxf5 {[%clk 0:01:24]}  Rb1+ {[%clk 0:00:17]} 36. Kg2 {[%clk 0:01:23]}  Qe1 {[%clk 0:00:18]} 37. Qc4+ {[%clk 0:01:21]}  Re6 {[%clk 0:00:15]} 38. Rh5 {[%clk 0:00:50]}  Qg1+ {[%clk 0:00:14]} 39. Kh3 {[%clk 0:00:50]}  Qh1+ {[%clk 0:00:12]} 40. Kg4 {[%clk 0:00:50]}  Qe1 {[%clk 0:00:09]} 41. Re3 {[%clk 0:00:49]}  Qd1+ {[%clk 0:00:07]} 42. f3 {[%clk 0:00:49]}  Ne5+ {[%clk 0:00:01]} 43. Rhxe5 {[%clk 0:00:49]} 1-0


[Site "https://www.chess.com"]

[Event "Titled Tuesday Blitz August 17 2021"]
[White "Le, Tuan Minh"]
[Black "Tristan, Leonardo"]
[WhiteFideId "12401153"]
[BlackFideId "113816"]
[WhiteElo "2450"]
[BlackElo "2404"]
[Result "0-1"]
[Round "04"]
[TimeControl "180+1"]
[Date "2021.08.17"]
[WhiteClock "0:00:03"]
[BlackClock "0:00:02"]

1. d4 {[%clk 0:03:00]}  Nf6 {[%clk 0:02:57]} 2. Nf3 {[%clk 0:03:01]}  d5 {[%clk 0:02:57]} 3. Bf4 {[%clk 0:02:59]}  e6 {[%clk 0:02:58]} 4. e3 {[%clk 0:02:59]}  Bd6 {[%clk 0:02:58]} 5. Nbd2 {[%clk 0:02:59]}  O-O {[%clk 0:02:58]} 6. c3 {[%clk 0:02:59]}  b6 {[%clk 0:02:59]} 7. Bd3 {[%clk 0:02:58]}  Bb7 {[%clk 0:02:59]} 8. O-O {[%clk 0:02:58]}  Ne4 {[%clk 0:03:00]} 9. a4 {[%clk 0:02:56]}  a5 {[%clk 0:03:00]} 10. Qc2 {[%clk 0:02:55]}  f5 {[%clk 0:03:00]} 11. Rfd1 {[%clk 0:02:32]}  Nd7 {[%clk 0:02:55]} 12. Rac1 {[%clk 0:02:18]}  g5 {[%clk 0:02:24]} 13. Bxd6 {[%clk 0:02:02]}  cxd6 {[%clk 0:02:22]} 14. Ne1 {[%clk 0:01:57]}  Rc8 {[%clk 0:02:02]} 15. f3 {[%clk 0:01:56]}  Nxd2 {[%clk 0:02:01]} 16. Qxd2 {[%clk 0:01:56]}  Qe7 {[%clk 0:01:26]} 17. c4 {[%clk 0:01:51]}  Nf6 {[%clk 0:01:19]} 18. b4 {[%clk 0:01:46]}  dxc4 {[%clk 0:01:15]} 19. Bxc4 {[%clk 0:01:42]}  d5 {[%clk 0:01:16]} 20. Bb3 {[%clk 0:01:39]}  axb4 {[%clk 0:01:08]} 21. Nd3 {[%clk 0:01:38]}  Rc3 {[%clk 0:00:54]} 22. Rxc3 {[%clk 0:01:39]}  bxc3 {[%clk 0:00:55]} 23. Qxc3 {[%clk 0:01:39]}  Rc8 {[%clk 0:00:53]} 24. Qb2 {[%clk 0:01:39]}  Ba6 {[%clk 0:00:52]} 25. Bc2 {[%clk 0:01:29]}  Qc7 {[%clk 0:00:46]} 26. Bb1 {[%clk 0:01:23]}  Nd7 {[%clk 0:00:38]} 27. Rc1 {[%clk 0:01:16]}  Qd8 {[%clk 0:00:38]} 28. Nb4 {[%clk 0:01:10]}  Rxc1+ {[%clk 0:00:28]} 29. Qxc1 {[%clk 0:01:11]}  Bc4 {[%clk 0:00:28]} 30. e4 {[%clk 0:00:58]}  fxe4 {[%clk 0:00:20]} 31. fxe4 {[%clk 0:00:58]}  Qf6 {[%clk 0:00:20]} 32. e5 {[%clk 0:00:55]}  Qe7 {[%clk 0:00:21]} 33. Nc6 {[%clk 0:00:52]}  Qg7 {[%clk 0:00:17]} 34. Qe3 {[%clk 0:00:34]}  Nf8 {[%clk 0:00:17]} 35. h3 {[%clk 0:00:20]}  h6 {[%clk 0:00:18]} 36. Nb4 {[%clk 0:00:16]}  Qa7 {[%clk 0:00:13]} 37. Bc2 {[%clk 0:00:15]}  Qa5 {[%clk 0:00:13]} 38. Nc6 {[%clk 0:00:10]}  Qa8 {[%clk 0:00:12]} 39. Nb4 {[%clk 0:00:06]}  Qa5 {[%clk 0:00:12]} 40. Qc3 {[%clk 0:00:06]}  Nd7 {[%clk 0:00:10]} 41. h4 {[%clk 0:00:05]}  gxh4 {[%clk 0:00:05]} 42. Qd2 {[%clk 0:00:05]}  Kg7 {[%clk 0:00:03]} 43. Qe1 {[%clk 0:00:03]}  b5 {[%clk 0:00:02]} 44. axb5 {[%clk 0:00:03]}  Qxb5 {[%clk 0:00:03]} 45. Qd2 {[%clk 0:00:01]}  Nb6 {[%clk 0:00:03]} 46. Kh2 {[%clk 0:00:02]}  Nd7 {[%clk 0:00:03]} 47. Qe1 {[%clk 0:00:02]}  Nf8 {[%clk 0:00:03]} 48. Qxh4 {[%clk 0:00:02]}  Qxb4 {[%clk 0:00:03]} 49. Qf6+ {[%clk 0:00:03]}  Kg8 {[%clk 0:00:02]} 50. Qxh6 {[%clk 0:00:03]}  Qe7 {[%clk 0:00:03]} 51. g4 {[%clk 0:00:03]}  Qg7 {[%clk 0:00:03]} 52. Qf4 {[%clk 0:00:03]}  Nh7 {[%clk 0:00:03]} 53. Kg3 {[%clk 0:00:03]}  Ng5 {[%clk 0:00:04]} 54. Qe3 {[%clk 0:00:03]}  Qh6 {[%clk 0:00:04]} 55. Qf4 {[%clk 0:00:02]}  Qh3+ {[%clk 0:00:03]} 56. Kf2 {[%clk 0:00:02]}  Ne4+ {[%clk 0:00:02]} 57. Bxe4 {[%clk 0:00:02]}  dxe4 {[%clk 0:00:03]} 58. Qxe4 {[%clk 0:00:03]}  Bd5 {[%clk 0:00:04]} 59. Qg6+ {[%clk 0:00:03]}  Kf8 {[%clk 0:00:04]} 60. Qf6+ {[%clk 0:00:03]}  Ke8 {[%clk 0:00:05]} 61. Qg6+ {[%clk 0:00:04]}  Kd7 {[%clk 0:00:06]} 62. Qf7+ {[%clk 0:00:04]}  Kc6 {[%clk 0:00:06]} 63. Qe8+ {[%clk 0:00:05]}  Kb6 {[%clk 0:00:06]} 64. Qb8+ {[%clk 0:00:05]}  Ka5 {[%clk 0:00:06]} 65. Qc7+ {[%clk 0:00:05]}  Kb4 {[%clk 0:00:07]} 66. Qb6+ {[%clk 0:00:06]}  Kc3 {[%clk 0:00:05]} 67. Qc5+ {[%clk 0:00:06]}  Kd2 {[%clk 0:00:04]} 68. Qb4+ {[%clk 0:00:06]}  Kc2 {[%clk 0:00:03]} 69. Qc5+ {[%clk 0:00:04]}  Kd1 {[%clk 0:00:02]} 70. Qb5 {[%clk 0:00:03]}  Qf3+ {[%clk 0:00:02]} 71. Kg1 {[%clk 0:00:03]}  Qg2# {[%clk 0:00:02]} 0-1


[Site "https://www.chess.com"]

[Event "Titled Tuesday Blitz August 17 2021"]
[White "Maiorov, Nikita"]
[Black "Alekseenko, Kirill"]
[WhiteFideId "13501720"]
[BlackFideId "4135539"]
[WhiteElo "2440"]
[BlackElo "2580"]
[Result "0-1"]
[Round "04"]
[TimeControl "180+1"]
[Date "2021.08.17"]
[WhiteClock "0:00:01"]
[BlackClock "0:00:10"]

1. d4 {[%clk 0:03:00]}  d5 {[%clk 0:03:00]} 2. c4 {[%clk 0:03:00]}  dxc4 {[%clk 0:03:01]} 3. Nf3 {[%clk 0:02:56]}  a6 {[%clk 0:03:01]} 4. e3 {[%clk 0:02:55]}  Bg4 {[%clk 0:03:02]} 5. Bxc4 {[%clk 0:02:54]}  e6 {[%clk 0:03:02]} 6. Nc3 {[%clk 0:02:53]}  Nc6 {[%clk 0:03:00]} 7. h3 {[%clk 0:02:51]}  Bh5 {[%clk 0:03:00]} 8. O-O {[%clk 0:02:51]}  Nf6 {[%clk 0:02:59]} 9. Re1 {[%clk 0:02:50]}  Be7 {[%clk 0:02:57]} 10. g4 {[%clk 0:02:36]}  Bg6 {[%clk 0:02:55]} 11. e4 {[%clk 0:02:36]}  Nd7 {[%clk 0:02:56]} 12. Bf1 {[%clk 0:02:06]}  O-O {[%clk 0:02:53]} 13. a3 {[%clk 0:01:59]}  Re8 {[%clk 0:02:38]} 14. Be3 {[%clk 0:01:55]}  Nf6 {[%clk 0:02:36]} 15. Bf4 {[%clk 0:01:53]}  Nd7 {[%clk 0:02:30]} 16. Rc1 {[%clk 0:01:52]}  Bd6 {[%clk 0:02:29]} 17. e5 {[%clk 0:01:51]}  Be7 {[%clk 0:02:27]} 18. d5 {[%clk 0:01:50]}  exd5 {[%clk 0:02:25]} 19. Nxd5 {[%clk 0:01:49]}  Nf8 {[%clk 0:02:23]} 20. Qb3 {[%clk 0:01:42]}  Ne6 {[%clk 0:02:18]} 21. Rcd1 {[%clk 0:01:40]}  Qc8 {[%clk 0:02:18]} 22. Bg3 {[%clk 0:01:31]}  Bf8 {[%clk 0:02:18]} 23. Qc3 {[%clk 0:01:21]}  Nc5 {[%clk 0:02:12]} 24. Bh2 {[%clk 0:01:13]}  Ne6 {[%clk 0:01:41]} 25. b4 {[%clk 0:01:08]}  Ne7 {[%clk 0:01:34]} 26. Nh4 {[%clk 0:00:59]}  Nxd5 {[%clk 0:01:34]} 27. Rxd5 {[%clk 0:00:58]}  c6 {[%clk 0:01:33]} 28. Rdd1 {[%clk 0:00:57]}  a5 {[%clk 0:01:33]} 29. f4 {[%clk 0:00:53]}  axb4 {[%clk 0:01:33]} 30. axb4 {[%clk 0:00:53]}  Be7 {[%clk 0:01:20]} 31. Nf3 {[%clk 0:00:47]}  f5 {[%clk 0:01:20]} 32. exf6 {[%clk 0:00:43]}  Bxf6 {[%clk 0:01:20]} 33. Qc4 {[%clk 0:00:39]}  Bf7 {[%clk 0:01:20]} 34. Ne5 {[%clk 0:00:34]}  Bxe5 {[%clk 0:01:15]} 35. Rxe5 {[%clk 0:00:33]}  Nc7 {[%clk 0:01:14]} 36. Qe4 {[%clk 0:00:30]}  Rxe5 {[%clk 0:01:05]} 37. Qxe5 {[%clk 0:00:29]}  Nd5 {[%clk 0:01:06]} 38. b5 {[%clk 0:00:25]}  Qf8 {[%clk 0:01:03]} 39. Qd4 {[%clk 0:00:16]}  h6 {[%clk 0:01:01]} 40. f5 {[%clk 0:00:16]}  Qa3 {[%clk 0:00:57]} 41. bxc6 {[%clk 0:00:14]}  bxc6 {[%clk 0:00:57]} 42. Re1 {[%clk 0:00:14]}  Qa5 {[%clk 0:00:48]} 43. Bg3 {[%clk 0:00:13]}  Qa3 {[%clk 0:00:46]} 44. Kh2 {[%clk 0:00:12]}  Qa2+ {[%clk 0:00:42]} 45. Re2 {[%clk 0:00:12]}  Qb1 {[%clk 0:00:42]} 46. Bg2 {[%clk 0:00:12]}  Qb3 {[%clk 0:00:37]} 47. Be5 {[%clk 0:00:11]}  Ra3 {[%clk 0:00:25]} 48. Rb2 {[%clk 0:00:10]}  Qe3 {[%clk 0:00:25]} 49. Rb8+ {[%clk 0:00:09]}  Kh7 {[%clk 0:00:25]} 50. Qxe3 {[%clk 0:00:08]}  Rxe3 {[%clk 0:00:21]} 51. Bg3 {[%clk 0:00:07]}  Re2 {[%clk 0:00:21]} 52. Kg1 {[%clk 0:00:06]}  Re3 {[%clk 0:00:20]} 53. Bf2 {[%clk 0:00:06]}  Rc3 {[%clk 0:00:20]} 54. Rb7 {[%clk 0:00:05]}  Kg8 {[%clk 0:00:20]} 55. Bd4 {[%clk 0:00:04]}  Rc1+ {[%clk 0:00:20]} 56. Kf2 {[%clk 0:00:04]}  Nf4 {[%clk 0:00:20]} 57. Bf3 {[%clk 0:00:04]}  Rc2+ {[%clk 0:00:20]} 58. Ke3 {[%clk 0:00:04]}  Nxh3 {[%clk 0:00:19]} 59. Rb8+ {[%clk 0:00:02]}  Kh7 {[%clk 0:00:19]} 60. f6 {[%clk 0:00:03]}  Ng5 {[%clk 0:00:12]} 61. fxg7 {[%clk 0:00:03]}  Bg8 {[%clk 0:00:13]} 62. Be4+ {[%clk 0:00:02]}  Nxe4 {[%clk 0:00:13]} 63. Kxe4 {[%clk 0:00:03]}  Rg2 {[%clk 0:00:13]} 64. Kf5 {[%clk 0:00:03]}  Rd2 {[%clk 0:00:13]} 65. Be5 {[%clk 0:00:02]}  c5 {[%clk 0:00:12]} 66. Bf6 {[%clk 0:00:03]}  Rf2+ {[%clk 0:00:12]} 67. Ke5 {[%clk 0:00:04]}  c4 {[%clk 0:00:13]} 68. Rb7 {[%clk 0:00:03]}  c3 {[%clk 0:00:13]} 69. Rc7 {[%clk 0:00:04]}  c2 {[%clk 0:00:13]} 70. Rc8 {[%clk 0:00:03]}  Kg6 {[%clk 0:00:13]} 71. Rc6 {[%clk 0:00:02]}  Re2+ {[%clk 0:00:11]} 72. Kd4 {[%clk 0:00:02]}  c1=Q {[%clk 0:00:12]} 73. Rxc1 {[%clk 0:00:01]}  Kxf6 {[%clk 0:00:12]} 74. Rc7 {[%clk 0:00:01]}  Re6 {[%clk 0:00:10]} 75. Rc8 {[%clk 0:00:01]}  Kxg7 {[%clk 0:00:10]} 0-1


[Site "https://www.chess.com"]

[Event "Titled Tuesday Blitz August 17 2021"]
[White "Majer, Damir"]
[Black "Papasimakopoulos, Alexandros"]
[WhiteFideId "4615689"]
[BlackFideId "4244125"]
[WhiteElo "2413"]
[BlackElo "2352"]
[Result "0-1"]
[Round "04"]
[TimeControl "180+1"]
[Date "2021.08.17"]
[WhiteClock "0:00:05"]
[BlackClock "0:00:37"]

1. d4 {[%clk 0:03:00]}  e6 {[%clk 0:02:59]} 2. Nf3 {[%clk 0:03:01]}  Nf6 {[%clk 0:03:00]} 3. e3 {[%clk 0:03:01]}  b6 {[%clk 0:02:55]} 4. Bd3 {[%clk 0:03:01]}  Bb7 {[%clk 0:02:55]} 5. c4 {[%clk 0:03:01]}  c5 {[%clk 0:02:56]} 6. Nc3 {[%clk 0:03:01]}  cxd4 {[%clk 0:02:54]} 7. exd4 {[%clk 0:03:00]}  Bb4 {[%clk 0:02:55]} 8. O-O {[%clk 0:02:59]}  O-O {[%clk 0:02:53]} 9. Bg5 {[%clk 0:02:55]}  Be7 {[%clk 0:02:48]} 10. Re1 {[%clk 0:02:54]}  h6 {[%clk 0:02:48]} 11. Bf4 {[%clk 0:02:51]}  d6 {[%clk 0:02:45]} 12. Qd2 {[%clk 0:02:49]}  Re8 {[%clk 0:02:44]} 13. Bxh6 {[%clk 0:02:48]}  gxh6 {[%clk 0:02:43]} 14. Qxh6 {[%clk 0:02:48]}  Bf8 {[%clk 0:02:44]} 15. Qg5+ {[%clk 0:02:47]}  Bg7 {[%clk 0:02:44]} 16. Re3 {[%clk 0:02:44]}  Nbd7 {[%clk 0:02:40]} 17. Nh4 {[%clk 0:02:23]}  Nh7 {[%clk 0:02:25]} 18. Bxh7+ {[%clk 0:01:46]}  Kxh7 {[%clk 0:02:25]} 19. Qh5+ {[%clk 0:01:45]}  Kg8 {[%clk 0:02:25]} 20. Rg3 {[%clk 0:01:45]}  Qf6 {[%clk 0:02:17]} 21. Nf3 {[%clk 0:01:28]}  Bxf3 {[%clk 0:02:09]} 22. Rxf3 {[%clk 0:01:26]}  Qg6 {[%clk 0:02:09]} 23. Qh4 {[%clk 0:01:21]}  Kf8 {[%clk 0:02:03]} 24. Ne4 {[%clk 0:01:16]}  Qh6 {[%clk 0:01:50]} 25. Qg3 {[%clk 0:01:08]}  e5 {[%clk 0:01:48]} 26. Ng5 {[%clk 0:01:04]}  Re7 {[%clk 0:01:37]} 27. d5 {[%clk 0:00:54]}  Nf6 {[%clk 0:01:28]} 28. h4 {[%clk 0:00:49]}  Rc8 {[%clk 0:01:22]} 29. b3 {[%clk 0:00:49]}  e4 {[%clk 0:01:17]} 30. Rf5 {[%clk 0:00:42]}  Nh5 {[%clk 0:01:15]} 31. Qg4 {[%clk 0:00:40]}  Bxa1 {[%clk 0:01:15]} 32. Rxf7+ {[%clk 0:00:38]}  Rxf7 {[%clk 0:01:09]} 33. Qxc8+ {[%clk 0:00:38]}  Kg7 {[%clk 0:01:09]} 34. Nxf7 {[%clk 0:00:24]}  Kxf7 {[%clk 0:01:10]} 35. Qd7+ {[%clk 0:00:23]}  Kg8 {[%clk 0:01:11]} 36. Qe8+ {[%clk 0:00:22]}  Kh7 {[%clk 0:01:11]} 37. Qxe4+ {[%clk 0:00:20]}  Qg6 {[%clk 0:01:10]} 38. Qe7+ {[%clk 0:00:19]}  Bg7 {[%clk 0:01:08]} 39. g3 {[%clk 0:00:19]}  Nxg3 {[%clk 0:01:00]} 40. fxg3 {[%clk 0:00:17]}  Qxg3+ {[%clk 0:01:01]} 41. Kf1 {[%clk 0:00:17]}  Qf3+ {[%clk 0:00:57]} 42. Kg1 {[%clk 0:00:17]}  a5 {[%clk 0:00:50]} 43. a4 {[%clk 0:00:11]}  Kh6 {[%clk 0:00:43]} 44. Qe6+ {[%clk 0:00:10]}  Kh5 {[%clk 0:00:41]} 45. Qe8+ {[%clk 0:00:05]}  Kxh4 {[%clk 0:00:38]} 46. Qe7+ {[%clk 0:00:05]}  Bf6 {[%clk 0:00:39]} 47. Qh7+ {[%clk 0:00:05]}  Kg4 {[%clk 0:00:37]} 0-1


[Site "https://www.chess.com"]

[Event "Titled Tuesday Blitz August 17 2021"]
[White "Maksimovic, Bojan"]
[Black "Nurmanova, Alua"]
[WhiteFideId "14408120"]
[BlackFideId "13729390"]
[WhiteElo "2439"]
[BlackElo "1869"]
[Result "1-0"]
[Round "04"]
[TimeControl "180+1"]
[Date "2021.08.18"]
[WhiteClock "0:00:23"]
[BlackClock "0:00:01"]

1. g3 {[%clk 0:03:00]}  Nf6 {[%clk 0:02:59]} 2. Bg2 {[%clk 0:03:01]}  g6 {[%clk 0:03:00]} 3. d3 {[%clk 0:03:01]}  Bg7 {[%clk 0:03:00]} 4. e4 {[%clk 0:03:02]}  d6 {[%clk 0:03:00]} 5. Nd2 {[%clk 0:02:58]}  O-O {[%clk 0:03:00]} 6. Nh3 {[%clk 0:02:58]}  e5 {[%clk 0:02:59]} 7. O-O {[%clk 0:02:58]}  Nc6 {[%clk 0:02:54]} 8. c3 {[%clk 0:02:58]}  h6 {[%clk 0:02:52]} 9. f4 {[%clk 0:02:56]}  Bg4 {[%clk 0:02:51]} 10. Qe1 {[%clk 0:02:56]}  exf4 {[%clk 0:02:47]} 11. gxf4 {[%clk 0:02:56]}  Re8 {[%clk 0:02:45]} 12. Qg3 {[%clk 0:02:56]}  Bd7 {[%clk 0:02:28]} 13. Bf3 {[%clk 0:02:50]}  h5 {[%clk 0:02:20]} 14. Ng5 {[%clk 0:02:47]}  Ng4 {[%clk 0:02:16]} 15. Nb3 {[%clk 0:02:31]}  a5 {[%clk 0:02:04]} 16. a4 {[%clk 0:02:20]}  Nh6 {[%clk 0:01:51]} 17. Nh3 {[%clk 0:02:14]}  Be6 {[%clk 0:01:48]} 18. Nd2 {[%clk 0:02:12]}  Bg4 {[%clk 0:01:47]} 19. Bg2 {[%clk 0:02:08]}  h4 {[%clk 0:01:43]} 20. Qf2 {[%clk 0:01:58]}  Bf6 {[%clk 0:01:14]} 21. Kh1 {[%clk 0:01:52]}  Qd7 {[%clk 0:01:11]} 22. Ng5 {[%clk 0:01:50]}  h3 {[%clk 0:01:10]} 23. Bf3 {[%clk 0:01:50]}  Bxf3+ {[%clk 0:01:09]} 24. Ndxf3 {[%clk 0:01:51]}  Bg7 {[%clk 0:00:54]} 25. Qh4 {[%clk 0:01:45]}  d5 {[%clk 0:00:49]} 26. e5 {[%clk 0:01:38]}  Qf5 {[%clk 0:00:49]} 27. d4 {[%clk 0:01:32]}  Qd3 {[%clk 0:00:49]} 28. Bd2 {[%clk 0:01:25]}  Ne7 {[%clk 0:00:36]} 29. Qxh3 {[%clk 0:01:13]}  Nef5 {[%clk 0:00:36]} 30. Rg1 {[%clk 0:01:13]}  c5 {[%clk 0:00:33]} 31. dxc5 {[%clk 0:01:12]}  Rac8 {[%clk 0:00:33]} 32. b4 {[%clk 0:01:10]}  axb4 {[%clk 0:00:32]} 33. cxb4 {[%clk 0:01:11]}  Nd4 {[%clk 0:00:32]} 34. Nxd4 {[%clk 0:01:09]}  Qxd4 {[%clk 0:00:29]} 35. Rad1 {[%clk 0:01:09]}  Qc4 {[%clk 0:00:21]} 36. f5 {[%clk 0:01:03]}  Rxe5 {[%clk 0:00:17]} 37. fxg6 {[%clk 0:00:50]}  f5 {[%clk 0:00:12]} 38. Nf3 {[%clk 0:00:44]}  Ng4 {[%clk 0:00:03]} 39. Nxe5 {[%clk 0:00:44]}  Nxe5 {[%clk 0:00:03]} 40. Qxf5 {[%clk 0:00:39]}  Re8 {[%clk 0:00:02]} 41. Rde1 {[%clk 0:00:35]}  d4 {[%clk 0:00:02]} 42. Rg2 {[%clk 0:00:28]}  Qd5 {[%clk 0:00:02]} 43. Qh5 {[%clk 0:00:24]}  Kf8 {[%clk 0:00:01]} 44. Rf1+ {[%clk 0:00:23]}  Kg8 {[%clk 0:00:01]} 45. Qh7# {[%clk 0:00:23]} 1-0


[Site "https://www.chess.com"]

[Event "Titled Tuesday Blitz August 17 2021"]
[White "Manon-og, Ramon Jr."]
[Black "Sokolovsky, Yahli"]
[WhiteFideId "5200776"]
[BlackFideId "2820242"]
[WhiteElo "2251"]
[BlackElo "1770"]
[Result "0-1"]
[Round "04"]
[TimeControl "180+1"]
[Date "2021.08.18"]
[WhiteClock "0:00:03"]
[BlackClock "0:00:05"]

1. d4 {[%clk 0:03:00]}  d6 {[%clk 0:02:54]} 2. Bg5 {[%clk 0:02:57]}  h6 {[%clk 0:02:51]} 3. Bh4 {[%clk 0:02:56]}  g5 {[%clk 0:02:52]} 4. Bg3 {[%clk 0:02:55]}  Nf6 {[%clk 0:02:50]} 5. e3 {[%clk 0:02:52]}  Ne4 {[%clk 0:02:46]} 6. Bc4 {[%clk 0:02:40]}  d5 {[%clk 0:02:43]} 7. Bd3 {[%clk 0:02:35]}  Nxg3 {[%clk 0:02:39]} 8. hxg3 {[%clk 0:02:27]}  Bg7 {[%clk 0:02:39]} 9. c4 {[%clk 0:02:19]}  e5 {[%clk 0:02:36]} 10. cxd5 {[%clk 0:02:10]}  exd4 {[%clk 0:02:36]} 11. e4 {[%clk 0:02:08]}  c6 {[%clk 0:02:34]} 12. Bc4 {[%clk 0:01:54]}  O-O {[%clk 0:02:03]} 13. Nd2 {[%clk 0:01:45]}  b5 {[%clk 0:01:43]} 14. Bb3 {[%clk 0:01:32]}  c5 {[%clk 0:01:43]} 15. a3 {[%clk 0:01:23]}  c4 {[%clk 0:01:40]} 16. Ba2 {[%clk 0:01:20]}  c3 {[%clk 0:01:35]} 17. Nb3 {[%clk 0:00:57]}  Re8 {[%clk 0:01:32]} 18. Bb1 {[%clk 0:00:52]}  cxb2 {[%clk 0:00:59]} 19. Ra2 {[%clk 0:00:51]}  Qxd5 {[%clk 0:00:54]} 20. Ne2 {[%clk 0:00:46]}  Qd6 {[%clk 0:00:47]} 21. Nbxd4 {[%clk 0:00:37]}  Nc6 {[%clk 0:00:31]} 22. Nxc6 {[%clk 0:00:32]}  Qxc6 {[%clk 0:00:32]} 23. O-O {[%clk 0:00:30]}  Be6 {[%clk 0:00:32]} 24. Nd4 {[%clk 0:00:22]}  Bxd4 {[%clk 0:00:22]} 25. Qxd4 {[%clk 0:00:22]}  Bxa2 {[%clk 0:00:18]} 26. Bxa2 {[%clk 0:00:23]}  Qxe4 {[%clk 0:00:12]} 27. Qxb2 {[%clk 0:00:22]}  Qe2 {[%clk 0:00:10]} 28. Qb3 {[%clk 0:00:20]}  Re7 {[%clk 0:00:09]} 29. Bb1 {[%clk 0:00:16]}  Rc8 {[%clk 0:00:07]} 30. Qd5 {[%clk 0:00:13]}  Qxf1+ {[%clk 0:00:06]} 31. Kh2 {[%clk 0:00:10]}  Qe2 {[%clk 0:00:05]} 32. Qf5 {[%clk 0:00:09]}  Kg7 {[%clk 0:00:03]} 33. Qxc8 {[%clk 0:00:07]}  Qh5+ {[%clk 0:00:04]} 34. Qh3 {[%clk 0:00:05]}  Qxh3+ {[%clk 0:00:04]} 35. gxh3 {[%clk 0:00:04]}  Re1 {[%clk 0:00:05]} 36. Bd3 {[%clk 0:00:03]}  a6 {[%clk 0:00:05]} 37. Kg2 {[%clk 0:00:03]}  Ra1 {[%clk 0:00:05]} 0-1


[Site "https://www.chess.com"]